[Event "RUS-chT Women Rapid 2019"]
[Site "Sochi"]
[Date "2019.10.19"]
[Round "9.10"]
[White "Ovod, Evgenija"]
[Black "Mukhina, Jana"]
[Result "1-0"]
[ECO "C50"]
[WhiteElo "2347"]
[BlackElo "2105"]
[Annotator "NA"]
[PlyCount "113"]
[EventDate "2019.10.18"]
[EventType "swiss"]
[EventCountry "RUS"]
[SourceTitle "playchess.com"]
[Source "ChessBase"]
[SourceQuality "1"]
[TimeControl "900+10"]

1. e4 {[%emt 0:00:00]} e5 {[%emt 0:00:00]} 2. Nf3 {[%emt 0:00:00]} Nc6 {[%emt 0:00:01]} 3. Bc4 {[%emt 0:00:00]} Bc5 {[%emt 0:00:01]} 4. O-O {[%emt 0:00:00]} Nf6 {[%emt 0:00:01]} 5. d3 {[%emt 0:00:00]} O-O {[%emt 0:00:01]} 6. Nbd2 {[%emt 0:00:00]} d6 {[%emt 0:00:28]} 7. c3 {[%emt 0:00:00]} a6 {[%emt 0:00:08]} 8. Bb3 {[%emt 0:00:00]} h6 {[%emt 0:00:06]} 9. h3 {[%emt 0:00:03]} Be6 {[%emt 0:00:27]} 10. Bc2 {[%emt 0:00:15]} d5 {[%emt 0:01:06]} 11. exd5 {[%emt 0:01:05]} Nxd5 {[%emt 0:00:45]} 12. Re1 {[%emt 0:00:37]} Bd6 {[%emt 0:02:16]} 13. Nc4 {[%emt 0:00:05]} Qf6 {[%emt 0:00:33]} 14. Nxd6 {[%emt 0:05:55]} cxd6 {[%emt 0:00:01]} 15. Bd2 {[%emt 0:00:02]} Nf4 {[%emt 0:00:20]} 16. Bxf4 {[%emt 0:00:37]} Qxf4 {[%emt 0:00:12]} 17. d4 {[%emt 0:00:25]} Bd5 {[%emt 0:01:19]} 18. Nh2 {[%emt 0:02:13]} exd4 {[%emt 0:00:59]} 19. Qd3 {[%emt 0:02:51]} f5 20. f3 Rae8 {[%emt 0:08:26]} 21. a3 {[%emt 0:01:03]} Re3 {[%emt 0:00:10]} 22. Rxe3 {[%emt 0:01:06]} Qxe3+ {[%emt 0:00:03]} 23. Qxe3 {[%emt 0:00:02]} dxe3 {[%emt 0:00:01]} 24. f4 {[%emt 0:00:00]} g5 {[%emt 0:00:23]} 25. g3 {[%emt 0:00:06]} Re8 {[%emt 0:01:10]} 26. Bxf5 {[%emt 0:00:28]} gxf4 {[%emt 0:00:01]} 27. gxf4 {[%emt 0:00:05]} Rf8 {[%emt 0:00:08]} 28. Ng4 {[%emt 0:00:14]} e2 {[%emt 0:00:20]} 29. Bd3 {[%emt 0:00:41]} Bf3 30. Nxh6+ {[%emt 0:00:11]} Kg7 {[%emt 0:00:18]} 31. Nf5+ {[%emt 0:00:03]} Kf6 {[%emt 0:00:02]} 32. Kf2 {[%emt 0:00:03]} Bh5 {[%emt 0:00:21]} 33. Ng3 Be8 {[%emt 0:00:01]} 34. Bxe2 {[%emt 0:00:10]} Bd7 35. Bg4 {[%emt 0:00:02]} Be8 {[%emt 0:00:30]} 36. Rd1 {[%emt 0:00:03]} Ke7 {[%emt 0:00:05]} 37. Nf5+ Kd8 38. Rxd6+ {[%emt 0:00:19]} Kc7 {[%emt 0:00:08]} 39. Rh6 {[%emt 0:00:26]} Bd7 {[%emt 0:00:05]} 40. Rh7 {[%emt 0:00:14]} Kd8 {[%emt 0:00:04]} 41. Nd4 {[%emt 0:00:37]} Bxg4 {[%emt 0:00:15]} 42. Nxc6+ {[%emt 0:00:02]} bxc6 {[%emt 0:00:03]} 43. hxg4 {[%emt 0:00:02]} Rxf4+ {[%emt 0:00:02]} 44. Kg3 {[%emt 0:00:00]} Rf1 {[%emt 0:00:08]} 45. g5 {[%emt 0:00:05]} Ke8 {[%emt 0:00:15]} 46. Kg4 {[%emt 0:00:08]} Rf2 {[%emt 0:00:32]} 47. Rb7 {[%emt 0:00:02]} a5 {[%emt 0:00:09]} 48. g6 {[%emt 0:00:06]} Kf8 {[%emt 0:00:02]} 49. Rf7+ {[%emt 0:00:28]} Rxf7 {[%emt 0:00:03]} 50. gxf7 {[%emt 0:00:01]} a4 {[%emt 0:00:19]} 51. Kf5 {[%emt 0:00:04]} Kxf7 {[%emt 0:00:01]} 52. Ke5 {[%emt 0:00:01]} Ke7 {[%emt 0:00:01]} 53. Kd4 {[%emt 0:00:01]} Kd6 {[%emt 0:00:03]} 54. Kc4 {[%emt 0:00:01]} c5 {[%emt 0:00:52]} 55. Kb5 {[%emt 0:00:05]} Kd5 {[%emt 0:00:01]} 56. Kxa4 {[%emt 0:00:09]} Kc4 {[%emt 0:00:02]} 57. b4 {[%emt 0:00:09]} 1-0

[Event "RUS-chT Women Rapid 2019"]
[Site "Sochi"]
[Date "2019.10.19"]
[Round "9.11"]
[White "Mironenko, Galina"]
[Black "Belenkaya, Dina"]
[Result "1/2-1/2"]
[ECO "B01"]
[WhiteElo "2236"]
[BlackElo "2300"]
[Annotator "NA"]
[PlyCount "140"]
[EventDate "2019.10.18"]
[EventType "swiss"]
[EventCountry "RUS"]
[SourceTitle "playchess.com"]
[Source "ChessBase"]
[SourceQuality "1"]
[TimeControl "900+10"]

1. e4 {[%emt 0:00:00]} d5 {[%emt 0:00:00]} 2. exd5 {[%emt 0:00:00]} Qxd5 {[%emt 0:00:00]} 3. Nc3 {[%emt 0:00:00]} Qa5 {[%emt 0:00:00]} 4. d4 {[%emt 0:00:03]} c6 {[%emt 0:00:01]} 5. g3 {[%emt 0:00:11]} g6 {[%emt 0:00:05]} 6. Bg2 {[%emt 0:00:15]} Bg7 {[%emt 0:00:01]} 7. Nge2 {[%emt 0:00:24]} Nf6 {[%emt 0:00:02]} 8. O-O {[%emt 0:00:58]} O-O {[%emt 0:00:22]} 9. a3 {[%emt 0:01:07]} Bg4 {[%emt 0:00:17]} 10. h3 {[%emt 0:00:19]} Be6 {[%emt 0:00:28]} 11. Re1 {[%emt 0:00:44]} Re8 {[%emt 0:00:13]} 12. b4 {[%emt 0:00:20]} Qd8 {[%emt 0:00:25]} 13. Bg5 {[%emt 0:02:18]} h6 {[%emt 0:00:13]} 14. Bxf6 {[%emt 0:00:32]} exf6 {[%emt 0:00:20]} 15. d5 {[%emt 0:02:02]} cxd5 {[%emt 0:00:10]} 16. Nxd5 {[%emt 0:00:03]} f5 {[%emt 0:00:36]} 17. Rc1 {[%emt 0:00:51]} Nc6 {[%emt 0:00:14]} 18. c4 {[%emt 0:00:24]} Rc8 {[%emt 0:02:02]} 19. Qb3 {[%emt 0:01:37]} h5 {[%emt 0:00:32]} 20. Red1 {[%emt 0:01:06]} h4 {[%emt 0:00:27]} 21. c5 {[%emt 0:01:45]} Qg5 {[%emt 0:01:33]} 22. gxh4 {[%emt 0:02:51]} Qxh4 {[%emt 0:00:14]} 23. Rc4 {[%emt 0:00:02]} Qh6 {[%emt 0:00:49]} 24. Nef4 {[%emt 0:00:40]} Rcd8 {[%emt 0:03:16]} 25. Nxe6 {[%emt 0:00:17]} fxe6 {[%emt 0:00:15]} 26. Nc7 {[%emt 0:00:15]} Nd4 {[%emt 0:00:37]} 27. Rcxd4 {[%emt 0:00:11]} Rxd4 {[%emt 0:00:23]} 28. Rxd4 {[%emt 0:00:12]} Bxd4 {[%emt 0:00:16]} 29. Nxe8 {[%emt 0:00:08]} Qc1+ {[%emt 0:00:05]} 30. Bf1 {[%emt 0:00:06]} Qg5+ {[%emt 0:00:06]} 31. Bg2 {[%emt 0:00:15]} Qc1+ {[%emt 0:00:58]} 32. Bf1 {[%emt 0:00:02]} Qg5+ {[%emt 0:02:19]} 33. Kh1 {[%emt 0:00:15]} Kf7 {[%emt 0:01:14]} 34. Nd6+ {[%emt 0:00:04]} Kf6 {[%emt 0:00:01]} 35. Qf3 {[%emt 0:00:18]} Qc1 {[%emt 0:00:05]} 36. Kg2 {[%emt 0:00:12]} Qg5+ {[%emt 0:00:06]} 37. Kh1 {[%emt 0:00:10]} Qc1 {[%emt 0:00:01]} 38. Kg2 {[%emt 0:00:03]} Qg5+ {[%emt 0:00:01]} 39. Qg3 {[%emt 0:00:15]} Qd2 {[%emt 0:00:05]} 40. Ne8+ {[%emt 0:00:11]} Kf7 {[%emt 0:00:03]} 41. Nd6+ {[%emt 0:00:03]} Kf6 {[%emt 0:00:02]} 42. Nxb7 {[%emt 0:00:18]} g5 {[%emt 0:00:08]} 43. c6 {[%emt 0:00:10]} Bb6 {[%emt 0:00:13]} 44. Qf3 {[%emt 0:00:10]} e5 {[%emt 0:00:13]} 45. c7 {[%emt 0:00:07]} e4 {[%emt 0:00:07]} 46. Qg3 {[%emt 0:00:10]} f4 {[%emt 0:00:06]} 47. c8=Q {[%emt 0:00:12]} fxg3 {[%emt 0:00:01]} 48. Qf8+ {[%emt 0:00:11]} Kg6 {[%emt 0:00:03]} 49. Qg8+ {[%emt 0:00:05]} Kh6 {[%emt 0:00:04]} 50. Qf8+ {[%emt 0:00:08]} Kg6 {[%emt 0:00:01]} 51. Qe8+ {[%emt 0:00:14]} Kf6 {[%emt 0:00:06]} 52. Qf8+ {[%emt 0:00:06]} Kg6 {[%emt 0:00:01]} 53. Kxg3 {[%emt 0:00:17]} e3 {[%emt 0:01:39]} 54. Qe8+ {[%emt 0:00:11]} Kh6 {[%emt 0:00:03]} 55. Qe6+ {[%emt 0:00:05]} Kh5 {[%emt 0:00:52]} 56. Qf7+ {[%emt 0:00:08]} Kh6 {[%emt 0:00:01]} 57. Qf6+ {[%emt 0:00:06]} Kh7 {[%emt 0:00:09]} 58. Qf5+ {[%emt 0:00:13]} Kh6 {[%emt 0:00:03]} 59. Qe6+ {[%emt 0:00:11]} Kg7 {[%emt 0:00:04]} 60. Qe5+ {[%emt 0:00:07]} Kg6 {[%emt 0:00:02]} 61. Qe6+ {[%emt 0:00:15]} Kg7 {[%emt 0:00:06]} 62. Qe7+ {[%emt 0:00:10]} Kg6 {[%emt 0:00:05]} 63. Qe4+ {[%emt 0:00:10]} Kf6 {[%emt 0:00:11]} 64. Qf3+ {[%emt 0:00:13]} Kg6 {[%emt 0:01:20]} 65. Qe4+ {[%emt 0:00:11]} Kh6 {[%emt 0:00:14]} 66. fxe3 {[%emt 0:00:10]} Bc7+ {[%emt 0:00:11]} 67. Kg4 {[%emt 0:00:11]} Qd1+ {[%emt 0:00:05]} 68. Qf3 {[%emt 0:00:07]} Qd7+ {[%emt 0:00:31]} 69. Qf5 {[%emt 0:00:08]} Qd1+ {[%emt 0:00:10]} 70. Qf3 {[%emt 0:00:07]} Qd7+ {[%emt 0:00:16]} 1/2-1/2

[Event "RUS-chT Women Rapid 2019"]
[Site "Sochi"]
[Date "2019.10.19"]
[Round "9.12"]
[White "Styazhkina, Anna"]
[Black "Filippova, Darya"]
[Result "1-0"]
[ECO "B13"]
[WhiteElo "2280"]
[BlackElo "2034"]
[Annotator "NA"]
[PlyCount "57"]
[EventDate "2019.10.18"]
[EventType "swiss"]
[EventCountry "RUS"]
[SourceTitle "playchess.com"]
[Source "ChessBase"]
[SourceQuality "1"]
[TimeControl "900+10"]

1. e4 {[%emt 0:00:00]} c6 {[%emt 0:00:00]} 2. d4 {[%emt 0:00:02]} d5 {[%emt 0:00:04]} 3. exd5 {[%emt 0:00:13]} cxd5 {[%emt 0:00:06]} 4. Bd3 {[%emt 0:00:06]} Nc6 {[%emt 0:00:08]} 5. c3 {[%emt 0:00:04]} Nf6 {[%emt 0:00:48]} 6. h3 {[%emt 0:00:08]} g6 {[%emt 0:00:19]} 7. Nf3 {[%emt 0:00:20]} Bg7 {[%emt 0:00:10]} 8. O-O {[%emt 0:00:08]} Bf5 {[%emt 0:00:20]} 9. Bf4 {[%emt 0:00:40]} O-O {[%emt 0:00:46]} 10. Na3 {[%emt 0:00:26]} Ne4 {[%emt 0:00:42]} 11. Re1 {[%emt 0:00:20]} Nd6 {[%emt 0:01:20]} 12. Nc2 {[%emt 0:00:25]} Re8 {[%emt 0:00:46]} 13. Ne3 {[%emt 0:00:39]} Be4 {[%emt 0:00:17]} 14. Qe2 {[%emt 0:08:05]} f6 {[%emt 0:01:50]} 15. Bh2 {[%emt 0:00:59]} e5 {[%emt 0:00:21]} 16. dxe5 {[%emt 0:00:10]} fxe5 {[%emt 0:00:39]} 17. Bxe4 {[%emt 0:00:53]} dxe4 {[%emt 0:00:44]} 18. Nd2 {[%emt 0:00:07]} Ne7 {[%emt 0:02:33]} 19. Rad1 {[%emt 0:00:59]} Qc7 {[%emt 0:00:22]} 20. Ng4 {[%emt 0:00:26]} Nef5 {[%emt 0:00:43]} 21. Nxe4 {[%emt 0:00:20]} Nxe4 {[%emt 0:00:28]} 22. Qxe4 {[%emt 0:00:01]} Rad8 {[%emt 0:00:37]} 23. Rxd8 {[%emt 0:00:16]} Qxd8 {[%emt 0:00:23]} 24. Nxe5 {[%emt 0:01:15]} Qd2 {[%emt 0:00:24]} 25. Qc4+ {[%emt 0:00:21]} Kh8 {[%emt 0:00:25]} 26. Nf7+ {[%emt 0:00:05]} Kg8 {[%emt 0:00:02]} 27. Nh6+ {[%emt 0:00:06]} Kh8 {[%emt 0:00:02]} 28. Qg8+ {[%emt 0:00:04]} Rxg8 {[%emt 0:00:03]} 29. Nf7# {[%emt 0:00:03]} 1-0